Cogmind - Beta 11 @@@ ROGUE MODE // 2022.04.02 @ 21:32:20 Player: Shadow Pussy wanter Result: Destroyed by P-80 Master with Gamma Rifle Performance ------------- Evolutions (8) 4000 Regions Visited (12) 2400 Robots Destroyed (89) 445 Value Destroyed (3566) 3566 Prototype IDs (27) 540 Alien Tech Used (0) 0 Bonus (300) 300 TOTAL SCORE: 11251 Bonus ------- Aligned with FarCom 300 Cogmind --------- Core Integrity 0/1450 Matter 281/300 Energy 99/100 System Corruption 3% Temperature Cool (0) Movement Core (50) Location -2/Research Parts ------- > --- POWER (2) -------- (None) > --- PROPULSION (6) --- (None) > --- UTILITY (10) ----- (None) > --- WEAPON (5) ------- (None) > --- INVENTORY (5) ---- Field Propulsion Array Advanced Terrain Scan Processor Improved Cloaking Device Improved Powered Armor Peak State ------------ > --- POWER ------------ Particle Reactor Light Particle Reactor > --- PROPULSION ------- Enhanced Armored Leg Enhanced Armored Leg Enhanced Armored Leg Enhanced Armored Leg Enhanced Armored Leg Centrium Leg > --- UTILITY ---------- Advanced Heat Sink Advanced Heat Sink Medium Storage Unit Advanced Signal Interpreter Layered Light Armor Plating Layered Light Armor Plating Improved Powered Armor Graphene Brace Hacking Suite Improved Hacking Suite > --- WEAPON ----------- Backup Laser VII Backup Laser VII Enhanced Quantum Rifle Enhanced Nova Cannon Enhanced Nova Cannon > --- INVENTORY -------- Medium Treads Flexi-carbon Leg Flexi-carbon Leg Myomer Leg Biometal Leg Field Propulsion Array Advanced Terrain Scan Processor Improved Cloaking Device Improved Powered Armor [Rating: 152] Favorites ----------- Power Micro Nuclear Core Engine Angular Momentum Engine Power Core Micro Nuclear Core Reactor Particle Reactor Propulsion Enhanced Armored Leg Treads Light Treads Leg Enhanced Armored Leg Wheel Wheel Hover Unit Antigrav System Flight Unit Nuclear Pulse Thruster Utility Improved Heat Sink Device Improved Heat Sink Storage Large Storage Unit Processor Advanced Targeting Computer Hackware Improved Hacking Suite Protection Light Armor Plating Weapon Light Assault Rifle Energy Gun Beam Rifle Energy Cannon Enhanced Nova Cannon Ballistic Gun Light Assault Rifle Launcher Heavy Shock Bomb Launcher Build | -11 -10 -10 -10 -9 -8 -8 -7 -6 -5 -4 -3 -2 ------- Run | Scr Mat Min Exi Min Mat Sto Fac Fac Fac Fac Res Res Slots Evolved 16 | . . . . . 4 . 2 2 2 2 2 2 Power 1 | . . . . . . . . . . . 1 . Propulsion 4 | . . . . . 2 . . . . 2 . . Utility 8 | . . . . . 1 . 2 1 2 . 1 1 Weapon 3 | . . . . . 1 . . 1 . . . 1 Parts Attached 140 | 7 2 2 2 4 5 14 7 18 5 18 33 23 Power 13 | 1 1 . 1 1 . 1 1 . . 2 3 2 Engine 5 | 1 . . 1 1 . 1 . . . 1 . . Core 4 | . 1 . . . . . 1 . . 1 1 . Reactor 4 | . . . . . . . . . . . 2 2 Propulsion 44 | 2 . 1 . 1 3 7 3 4 . 4 8 11 Treads 5 | 1 . . . . 2 . . . . . . 2 Leg 27 | . . . . 1 . 7 3 1 . . 6 9 Wheel 3 | 1 . 1 . . 1 . . . . . . . Hover 2 | . . . . . . . . . . 2 . . Flight 7 | . . . . . . . . 3 . 2 2 . Utility 35 | 2 . . 1 1 1 3 2 6 2 3 8 6 Device 15 | 1 . . . . . 2 1 2 . 2 4 3 Storage 4 | 1 . . 1 . . . . 1 . . 1 . Processor 3 | . . . . . 1 . . . 2 . . . Hackware 4 | . . . . . . . . 1 . 1 2 . Protection 9 | . . . . 1 . 1 1 2 . . 1 3 Artifact . | . . . . . . . . . . . . . Weapon 48 | 2 1 1 . 1 1 3 1 8 3 9 14 4 Energy Gun 15 | 1 1 . . . . 1 . 3 . 4 4 1 Energy Cannon 19 | . . . . . . . 1 3 3 5 5 2 Ballistic Gun 10 | 1 . 1 . 1 1 2 . 1 . . 3 . Ballistic Cannon . | . . . . . . . . . . . . . Launcher 4 | . . . . . . . . 1 . . 2 1 Special Weapon . | . . . . . . . . . . . . . Impact Weapon . | . . . . . . . . . . . . . Slashing Weapon . | . . . . . . . . . . . . . Piercing Weapon . | . . . . . . . . . . . . . Special Melee Weapon . | . . . . . . . . . . . . . Unidentified Prototypes 4 | . . . . . . . . . . 1 2 1 Parts Lost 52 | . 1 2 . 1 1 2 2 5 . 7 14 17 Power 6 | . . . . . . . 1 . . 1 2 2 Propulsion 18 | . . 1 . 1 1 . 1 1 . 3 2 8 Utility 13 | . . . . . . . . 2 . 3 4 4 Weapon 15 | . 1 1 . . . 2 . 2 . . 6 3 Highest Loss Streak 15 | . 1 2 . 1 1 1 2 4 . 4 7 15 To Critical Strikes . | . . . . . . . . . . . . . Average Slot Usage (%) 89 | . 99 95 100 93 89 98 100 92 65 69 86 85 Engine 3 | . 4 . 8 14 9 8 3 . . 2 2 . Core 3 | . 9 14 5 . . . 3 6 5 2 3 . Reactor 1 | . . . . . . . . . . . 1 7 Treads 2 | . 14 14 14 2 10 . . . . . . . Leg 15 | . . . . 5 9 34 30 20 . . 18 22 Wheel 3 | . 14 14 14 14 13 . . . . . . . Flight 3 | . . . . . . . . 3 17 17 2 . Device 13 | . 14 14 14 2 . 1 15 18 17 14 17 11 Storage 7 | . 14 14 14 14 9 9 7 5 5 5 4 3 Processor 6 | . . . . . 4 9 7 6 12 14 9 4 Hackware 3 | . . . . . . . . . 5 5 8 7 Protection 4 | . . . . 11 9 7 7 6 . . . 9 Energy Gun 5 | . 13 14 14 . . 3 7 9 . 1 4 8 Energy Cannon 2 | . . . . . . . 1 5 . . 2 6 Ballistic Gun 9 | . 14 10 14 28 25 23 13 5 . . 5 . Naked Turns 51 | . . . . . . . . . . . . 51 Heaviest Build 108 | 14 14 16 31 36 37 39 42 65 24 32 64 108 Greatest Support 138 | 10 10 10 10 10 20 60 64 64 18 35 129 138 Greatest Overweight (x) 4 | 1 1 4 3 3 3 3 . 3 1 2 1 . Average Overweight (x) . | . 1 1 1 3 2 . . . . . . . Largest Inventory Capacity 15 | 8 8 8 15 15 15 15 15 15 8 8 10 10 Average Capacity 11 | 7 8 8 9 15 15 15 15 13 8 8 9 9 Most Carried 15 | 6 8 8 9 15 15 15 15 15 8 8 10 10 Average Carried 10 | 4 7 7 8 13 13 14 14 11 6 7 9 8 Final Capacity 15 | 8 8 8 15 15 15 15 15 8 8 8 10 5 Final Carried 15 | 6 8 8 9 15 14 14 15 6 8 8 7 5 Class Distribution -------------------- 25% | Mutant 23% | Scavenger-Skirmisher 15% | Scout 11% | Hacker-Mutant 7% | Skirmisher 5% | Hacker-Skirmisher 4% | Hacker-Tank Dominant Class ---------------- Mutant | -10/Materials Mutant | -10/Mines Mutant | -10/Exiles Mutant | -9/Mines Skirmisher | -8/Materials Skirmisher | -8/Storage Scavenger-Skirmisher | -7/Factory Scavenger-Skirmisher | -6/Factory Scout | -5/Factory Scout | -4/Factory Hacker-Mutant | -3/Research Hacker-Tank | -2/Research Resources | -11 -10 -10 -10 -9 -8 -8 -7 -6 -5 -4 -3 -2 ----------- Run | Scr Mat Min Exi Min Mat Sto Fac Fac Fac Fac Res Res Matter Collected 2325 | 251 103 17 . 210 55 267 111 129 30 203 572 377 Remotely . | . . . . . . . . . . . . . Salvage Created 3729 | 13 223 . . 165 55 398 366 355 30 203 1050 871 Parts 203 | 4 12 . . 15 4 26 26 10 2 16 42 46 Haulers Intercepted 1 | . . . . . . . 1 . . . . . Recyclers Shooed 10 | . . . . . . 3 2 2 . . 3 . Parts Field Recycled . | . . . . . . . . . . . . . Retrieved Matter . | . . . . . . . . . . . . . Parts Self-Destructed . | . . . . . . . . . . . . . Prevented . | . . . . . . . . . . . . . Kills | -11 -10 -10 -10 -9 -8 -8 -7 -6 -5 -4 -3 -2 ------- Run | Scr Mat Min Exi Min Mat Sto Fac Fac Fac Fac Res Res Combat Hostiles Destroyed 67 | . 7 . . 9 1 7 6 5 . 4 16 12 Guns 46 | . 7 . . 9 1 6 6 4 . 4 7 2 Cannons 10 | . . . . . . . . 1 . . . 9 AOE 8 | . . . . . . . . . . . 8 . Classes Destroyed 12 | 1 3 . . 1 1 1 2 1 . . 2 . Worker 8 | . . . . . . 1 1 . . . 4 2 Tunneler 1 | 1 . . . . . . . . . . . . Hauler 1 | . . . . . . . 1 . . . . . Recycler 3 | . . . . . . . . . . . 2 1 Operator 2 | . . . . . . . . 2 . . . . Watcher 7 | . 1 . . . . 1 1 1 1 . 2 . Swarmer 24 | . 3 . . 7 . . 2 . . . 7 5 Grunt 15 | . 4 . . 1 . 2 3 3 . . 1 1 Duelist 1 | . . . . 1 . . . . . . . . Sentry 10 | . . . . . 1 5 . 2 . . 1 1 Hunter 2 | . . . . . . . . . . . 1 1 Programmer 15 | . . . . . . . 1 . . 4 6 4 Best Kill Streak 6 | 1 2 . . 4 1 4 3 3 1 2 6 6 Combat Bots Only 5 | . 2 . . 4 1 3 3 2 . 2 5 4 Max Kills in Single Turn 5 | 1 1 . . 2 1 1 1 1 1 1 5 2 Gunslinging 1 | . . . . 1 . . . . . . . . Exploded 3 | . . . . . . . . . . . 3 . Melee . | . . . . . . . . . . . . . Uniques/NPCs Destroyed . | . . . . . . . . . . . . . Combat | -11 -10 -10 -10 -9 -8 -8 -7 -6 -5 -4 -3 -2 -------- Run | Scr Mat Min Exi Min Mat Sto Fac Fac Fac Fac Res Res Damage Taken 11056 | . 305 332 . 318 60 390 288 591 . 707 3825 4240 Core 2439 | . 76 116 . 41 . 54 13 21 . 172 489 1457 Absorbed by Shields . | . . . . . . . . . . . . . Redirected to Shielding 4 | . . . . 4 . . . . . . . . Core Remaining (%) 79 | 100 . . . 6 . 90 98 97 100 85 62 . Volleys Fired 337 | 1 27 . . 27 3 30 31 23 7 30 105 53 Largest 5 | 2 2 . . 2 3 3 3 4 1 2 3 5 Hottest 405 | 60 60 . . 53 73 96 156 253 90 176 219 405 Shots Fired 723 | 2 53 . . 54 9 87 93 77 7 40 189 112 Gun 575 | 2 53 . . 54 9 87 92 55 . 23 152 48 Cannon 145 | . . . . . . . 1 22 7 17 34 64 Launcher 3 | . . . . . . . . . . . 3 . Special . | . . . . . . . . . . . . . Kinetic 327 | 1 27 . . 54 9 74 61 26 . . 75 . Thermal 392 | 1 26 . . . . 13 32 50 7 40 111 112 Explosive 3 | . . . . . . . . . . . 3 . Electromagnetic 1 | . . . . . . . . 1 . . . . Robot Hit Streak 21 | 2 9 . . 5 2 12 6 21 1 11 11 5 Robot Miss Streak 4 | . 2 . . 3 2 2 4 3 1 2 3 3 Penetration Max 1 | . . . . . . . . . . . 1 . Secondary Targets 4 | . . . . 3 . . 1 . . . . . Max Gunslinging Chain 1 | . . . . 1 . . 1 . . . . . Shots Hit Robots 411 | 2 31 . . 29 4 63 58 55 1 18 99 51 Core Hits 172 | 1 15 . . 10 2 21 28 25 1 8 40 21 Critical Kills 6 | . . . . . . . . 1 . . 4 1 Critical Parts Destroyed 14 | . . . . . . . . . . 3 11 . Critical Strikes 28 | . . . . . . 4 3 1 . 3 16 1 Burn 7 | . . . . . . 4 3 . . . . . Meltdown 1 | . . . . . . . . . . . . 1 Destroy 20 | . . . . . . . . 1 . 3 16 . Melee Attacks . | . . . . . . . . . . . . . Impact . | . . . . . . . . . . . . . Slashing . | . . . . . . . . . . . . . Piercing . | . . . . . . . . . . . . . Sneak Attacks . | . . . . . . . . . . . . . Combat Hostiles . | . . . . . . . . . . . . . Follow-up Attacks . | . . . . . . . . . . . . . Damage Inflicted 10125 | 23 374 38 . 537 65 717 611 1095 31 594 4125 1915 Guns 7240 | 23 374 . . 529 65 717 585 699 . 594 2832 822 Cannons 1841 | . . . . . . . 26 396 31 . 309 1079 Explosions 958 | . . . . . . . . . . . 958 . Melee . | . . . . . . . . . . . . . Ramming 86 | . . 38 . 8 . . . . . . 26 14 Kinetic 3209 | 12 175 . . 529 65 569 311 204 . . 1344 . Thermal 5851 | 11 199 . . . . 148 300 870 31 594 1797 1901 Explosive 958 | . . . . . . . . . . . 958 . Electromagnetic 21 | . . . . . . . . 21 . . . . Impact . | . . . . . . . . . . . . . Slashing . | . . . . . . . . . . . . . Piercing . | . . . . . . . . . . . . . Highest Corruption 9 | . . . . . . . . 4 . 7 9 3 Average Corruption 4 | . . . . . . . . 4 . 6 6 1 Corruption Purged . | . . . . . . . . . . . . . Corruption Blocked . | . . . . . . . . . . . . . Effects 27 | . . . . . . . . 2 . 1 17 7 Message Errors 6 | . . . . . . . . . . . 5 1 Matter Fused 9 | . . . . . . . . 1 . 1 4 3 Heat Flow Errors 3 | . . . . . . . . . . . 2 1 Energy Discharges 1 | . . . . . . . . . . . 1 . Parts Rejected 1 | . . . . . . . . . . . . 1 Data Loss (minor) 4 | . . . . . . . . 1 . . 3 . Data Loss (major) 1 | . . . . . . . . . . . 1 . Weapon Failures 2 | . . . . . . . . . . . 1 1 Overload Shots . | . . . . . . . . . . . . . Overflow Damage 106 | . . . . . . . . 2 . . 47 57 Projectiles 60 | . . . . . . . . 2 . . 1 57 Explosions 46 | . . . . . . . . . . . 46 . Melee . | . . . . . . . . . . . . . Knockbacks 1 | . . . . . . . . . . . 1 . Impact 1 | . . . . . . . . . . . 1 . Kinetic . | . . . . . . . . . . . . . Secondary . | . . . . . . . . . . . . . Self-Inflicted Damage 43 | . . 17 . . . . . . . . 20 6 Shots 1 | . . . . . . . . . . . 1 . Rammed 11 | . . 7 . . . . . . . . . 4 Targets Rammed 20 | . . 7 . 2 . . . . . . 7 4 Kicked 9 | . . . . 2 . . . . . . 7 . Crushed . | . . . . . . . . . . . . . Highest Temperature 580 | . 102 . . 3 18 336 49 258 . 168 408 580 Average Temperature 94 | . 28 . . 3 14 147 19 92 . 53 76 175 Received Heat Transfer 1083 | . 123 . . 6 18 162 90 225 . 27 198 234 Effects 19 | . . . . . . . . . . . 3 16 Shutdowns 8 | . . . . . . . . . . . 1 7 Energy Bleed 2 | . . . . . . . . . . . 1 1 Interference 1 | . . . . . . . . . . . 1 . Matter Decay 1 | . . . . . . . . . . . . 1 Short Circuit 1 | . . . . . . . . . . . . 1 Damage (major) 5 | . . . . . . . . . . . . 5 Damage (core) 1 | . . . . . . . . . . . . 1 Siege Activations . | . . . . . . . . . . . . . Robots Corrupted . | . . . . . . . . . . . . . Combat Hostiles . | . . . . . . . . . . . . . Parts Fried . | . . . . . . . . . . . . . Impact Corruptions . | . . . . . . . . . . . . . Robots Melted 3 | . . . . . . 1 . . . . 1 1 Combat Hostiles 3 | . . . . . . 1 . . . . 1 1 Parts Melted 24 | . . . . . . 4 . 4 1 1 7 7 Heat Transferred 9038 | 25 450 . . . . 666 975 1847 50 666 2324 2035 Parts Sabotaged . | . . . . . . . . . . . . . Parts Stolen . | . . . . . . . . . . . . . Parts Stripped . | . . . . . . . . . . . . . Power Chain Reactions . | . . . . . . . . . . . . . Missiles Intercepted . | . . . . . . . . . . . . . Alert | -11 -10 -10 -10 -9 -8 -8 -7 -6 -5 -4 -3 -2 ------- Run | Scr Mat Min Exi Min Mat Sto Fac Fac Fac Fac Res Res Peak Influence 395 | 5 206 94 . 116 74 174 99 112 19 395 267 272 Initial 123 | . 3 79 . . 38 31 48 26 . 9 123 51 Average 72 | 2 100 76 . 91 51 74 56 52 8 106 63 102 Maximum Alert Level 1 | . 1 . . . . . . . . 1 1 1 Low Security (%) 94 | 100 78 100 . 100 100 100 100 100 100 77 97 91 Level 1 5 | . 21 . . . . . . . . 22 2 8 Level 2 . | . . . . . . . . . . . . . Level 3 . | . . . . . . . . . . . . . Level 4 . | . . . . . . . . . . . . . Level 5 . | . . . . . . . . . . . . . High Security . | . . . . . . . . . . . . . Max Security . | . . . . . . . . . . . . . Squads Dispatched 22 | . . . . . . 2 2 3 1 4 4 6 Investigation 1 | . . . . . . . . 1 . . . . Extermination 9 | . . . . . . . 1 1 1 2 2 2 Reinforcement 10 | . . . . . . 2 1 1 . 2 2 2 Assault . | . . . . . . . . . . . . . Garrison 2 | . . . . . . . . . . . . 2 Intercept . | . . . . . . . . . . . . . Searches Triggered . | . . . . . . . . . . . . . Construction Impeded 2 | . . . . . . . . . . . 1 1 Haulers Reinforced . | . . . . . . . . . . . . . Active Scanning Responses . | . . . . . . . . . . . . . Cargo Convoy Interrupts . | . . . . . . . . . . . . . Stealth | -11 -10 -10 -10 -9 -8 -8 -7 -6 -5 -4 -3 -2 --------- Run | Scr Mat Min Exi Min Mat Sto Fac Fac Fac Fac Res Res Distress Signals 9 | . . . . . . 1 1 1 . 2 1 3 Communications Jammed 6 | . . . . . . . . . . . 6 . Distress Signals 3 | . . . . . . . . . . . 3 . Times Spotted 148 | . 11 6 . 9 1 11 9 11 2 27 27 34 Peak Tracking Total 17 | . 6 3 . 4 1 4 3 4 2 13 6 17 Tactical Retreats 18 | . 1 1 . . . 1 . 1 . 8 3 3 Traps | -11 -10 -10 -10 -9 -8 -8 -7 -6 -5 -4 -3 -2 ------- Run | Scr Mat Min Exi Min Mat Sto Fac Fac Fac Fac Res Res Traps Triggered 5 | . . . . . . 3 . 1 . . . 1 Indirectly . | . . . . . . . . . . . . . Trap Hack Attempts . | . . . . . . . . . . . . . Triggered . | . . . . . . . . . . . . . Disarmed . | . . . . . . . . . . . . . Reprogrammed . | . . . . . . . . . . . . . Reused . | . . . . . . . . . . . . . Traps Extracted . | . . . . . . . . . . . . . Installed . | . . . . . . . . . . . . . Triggered . | . . . . . . . . . . . . . Machines | -11 -10 -10 -10 -9 -8 -8 -7 -6 -5 -4 -3 -2 ---------- Run | Scr Mat Min Exi Min Mat Sto Fac Fac Fac Fac Res Res Machines Disabled 1 | . . . . . . . . . . . . 1 Max in Single Turn 1 | . . . . . . . . . . . . 1 Garrison Access 3 | . . . . . . . . . . 1 1 1 Machines Sabotaged . | . . . . . . . . . . . . . Garrisons Compromised . | . . . . . . . . . . . . . Overloaded Fab Kills . | . . . . . . . . . . . . . Hacking | -11 -10 -10 -10 -9 -8 -8 -7 -6 -5 -4 -3 -2 --------- Run | Scr Mat Min Exi Min Mat Sto Fac Fac Fac Fac Res Res Machines Accessed 22 | . 1 . 1 1 1 4 2 3 1 3 3 2 Terminals 17 | . 1 . . 1 1 4 2 3 1 2 2 . Fabricators . | . . . . . . . . . . . . . Repair Stations 1 | . . . . . . . . . . . . 1 Recycling Units . | . . . . . . . . . . . . . Scanalyzers . | . . . . . . . . . . . . . Garrison Access 3 | . . . . . . . . . . 1 1 1 Total Hacks 39 | . 1 . 1 1 1 6 5 5 1 5 11 2 Successful 20 | . 1 . 1 . . 4 3 1 . 2 6 2 Failed 19 | . . . . 1 1 2 2 4 1 3 5 . Catastrophic 6 | . . . . . 1 1 2 1 . 1 . . Database Lockouts . | . . . . . . . . . . . . . Manual 27 | . 1 . 1 1 1 4 5 3 1 4 6 . Terminals 33 | . 1 . . 1 1 6 5 5 1 4 9 . Fabricators . | . . . . . . . . . . . . . Repair Stations 1 | . . . . . . . . . . . . 1 Recycling Units . | . . . . . . . . . . . . . Scanalyzers . | . . . . . . . . . . . . . Garrison Access 4 | . . . . . . . . . . 1 2 1 Terminal Hacks 12 | . 1 . 1 . . 4 1 1 . . 4 . Open Door 2 | . . . . . . 2 . . . . . . Open DSF 1 | . . . . . . . . 1 . . . . Branch Access Points 1 | . 1 . . . . . . . . . . . Alert Level 1 | . . . . . . . 1 . . . . . Unreport Threat 5 | . . . . . . 2 . . . . 3 . Locate Traps 1 | . . . . . . . . . . . 1 . EX-Prototype ID Bank 1 | . . . 1 . . . . . . . . . Fabricator Hacks . | . . . . . . . . . . . . . Repair Station Hacks 1 | . . . . . . . . . . . . 1 Refit 1 | . . . . . . . . . . . . 1 Recycling Unit Hacks . | . . . . . . . . . . . . . Scanalyzer . | . . . . . . . . . . . . . Garrison Access Hacks 3 | . . . . . . . . . . 1 1 1 Seal Access 3 | . . . . . . . . . . 1 1 1 Unauthorized Hacks 4 | . . . . . . . 2 . . 1 1 . Terminals 4 | . . . . . . . 2 . . 1 1 . Botnet 4 | . . . . . . . 2 . . 1 1 . Fabricators . | . . . . . . . . . . . . . Repair Stations . | . . . . . . . . . . . . . Recycling Units . | . . . . . . . . . . . . . Scanalyzers . | . . . . . . . . . . . . . Garrison Access . | . . . . . . . . . . . . . Data Cores Recovered 1 | . . . . . . . . 1 . . . . Used 1 | . . . . . . . . 1 . . . . Hacking Detections 16 | . . . . 1 1 3 2 3 1 2 2 1 Full Trace Events 1 | . . . . . . . . 1 . . . . Feedback Events . | . . . . . . . . . . . . . Feedback Blocked . | . . . . . . . . . . . . . Robot Schematics Acquired . | . . . . . . . . . . . . . Robots Built . | . . . . . . . . . . . . . Authchips . | . . . . . . . . . . . . . Time . | . . . . . . . . . . . . . Total Robot Build Rating . | . . . . . . . . . . . . . Part Schematics Acquired . | . . . . . . . . . . . . . Parts Built . | . . . . . . . . . . . . . Authchips . | . . . . . . . . . . . . . Time . | . . . . . . . . . . . . . Total Part Build Rating . | . . . . . . . . . . . . . Parts Repaired . | . . . . . . . . . . . . . Time . | . . . . . . . . . . . . . Parts Recycled . | . . . . . . . . . . . . . Recycled Matter . | . . . . . . . . . . . . . Retrieved Matter . | . . . . . . . . . . . . . Retrieved Components . | . . . . . . . . . . . . . Parts Scanalyzed . | . . . . . . . . . . . . . Part Schematics Acquired . | . . . . . . . . . . . . . Parts Damaged . | . . . . . . . . . . . . . Bothacking | -11 -10 -10 -10 -9 -8 -8 -7 -6 -5 -4 -3 -2 ------------ Run | Scr Mat Min Exi Min Mat Sto Fac Fac Fac Fac Res Res Used RIF Installer . | . . . . . . . . . . . . . Robots Hacked . | . . . . . . . . . . . . . Non-combat . | . . . . . . . . . . . . . Combat . | . . . . . . . . . . . . . Robot Hacks Applied . | . . . . . . . . . . . . . Relay Couplers Released 4 | . . . . . . . . . . . 4 . Programmers 4 | . . . . . . . . . . . 4 . Fabnet Peak Effective % . | . . . . . . . . . . . . . Robots Rewired . | . . . . . . . . . . . . . Allies Hacked . | . . . . . . . . . . . . . Hacks Repelled . | . . . . . . . . . . . . . Allies | -11 -10 -10 -10 -9 -8 -8 -7 -6 -5 -4 -3 -2 -------- Run | Scr Mat Min Exi Min Mat Sto Fac Fac Fac Fac Res Res Total Allies . | . . . . . . . . . . . . . Largest Group . | . . . . . . . . . . . . . Highest-Rated Group . | . . . . . . . . . . . . . Highest-Rated Ally . | . . . . . . . . . . . . . Total Orders . | . . . . . . . . . . . . . Ally Attacks . | . . . . . . . . . . . . . Total Damage . | . . . . . . . . . . . . . Kills . | . . . . . . . . . . . . . Allies Corrupted . | . . . . . . . . . . . . . Allies Melted . | . . . . . . . . . . . . . Intel | -11 -10 -10 -10 -9 -8 -8 -7 -6 -5 -4 -3 -2 ------- Run | Scr Mat Min Exi Min Mat Sto Fac Fac Fac Fac Res Res Robot Analysis Total . | . . . . . . . . . . . . . Derelict Logs Recovered . | . . . . . . . . . . . . . Drone Launches . | . . . . . . . . . . . . . Drone Recoveries . | . . . . . . . . . . . . . Exploration | -11 -10 -10 -10 -9 -8 -8 -7 -6 -5 -4 -3 -2 ------------- Run | Scr Mat Min Exi Min Mat Sto Fac Fac Fac Fac Res Res Turns Passed 7384 | 65 338 291 255 600 130 533 1043 848 330 826 1236 889 Spaces Moved 6467 | 51 237 288 249 353 100 318 729 690 583 1517 692 660 Core 201 | 4 . 2 . . . . . . . 15 . 180 Treads . | . . . . . . . . . . . . . Legs 2470 | . . . . 17 . 306 729 456 . . 482 480 Wheels 1267 | 47 237 286 249 336 100 12 . . . . . . Hover . | . . . . . . . . . . . . . Flight 2529 | . . . . . . . . 234 583 1502 210 . Fastest Speed 26 | 50 95 95 95 125 95 120 120 34 34 26 34 50 Average Speed 82 | 89 95 96 100 134 111 122 121 97 36 32 95 100 Slowest Speed 330 | 95 95 250 125 330 125 260 125 280 114 150 190 120 Overloaded Moves . | . . . . . . . . . . . . . Propulsion Burnouts . | . . . . . . . . . . . . . Robots Hopped 27 | . . . . . . . . 1 . 26 . . Cave-ins Triggered . | . . . . . . . . . . . . . Exploration Rate (%) 34 | 3 44 71 60 75 11 50 16 18 10 37 22 25 Regions Visited 12 Branch Regions 4 Pre-discovered Areas 1 | . . . . 1 . . . . . . . . Known Exits Taken 4 | . 1 . . . . . . . 1 1 1 . Unknown Exits Taken 8 | 1 . 1 1 1 1 1 1 1 . . . . Scrap Searched 4 | . . 2 . 2 . . . . . . . . Spaces Dug 80 | . . . . . . . . 2 5 17 33 23 Terrain Destroyed 127 | . . . . 5 1 3 . 3 5 17 56 37 Melee . | . . . . . . . . . . . . . Projectile 93 | . . . . 5 1 3 . 3 5 17 22 37 AOE 34 | . . . . . . . . . . . 34 . Terrain Rammed . | . . . . . . . . . . . . . Walls Destroyed . | . . . . . . . . . . . . . Machines Disabled . | . . . . . . . . . . . . . Actions | -11 -10 -10 -10 -9 -8 -8 -7 -6 -5 -4 -3 -2 --------- Run | Scr Mat Min Exi Min Mat Sto Fac Fac Fac Fac Res Res Total 7872 | 64 297 301 254 419 112 403 832 817 692 1789 1099 793 Wait 799 | . 26 4 . 22 . 29 58 62 93 233 234 38 Move 6406 | 50 236 287 248 352 99 317 728 687 582 1468 692 660 Hop 23 | . . . . . . . . 1 . 22 . . Pick Up 69 | 6 4 1 2 8 3 4 5 8 2 5 15 6 Fast Attach 58 | 7 1 1 . 1 3 10 1 8 2 6 6 12 Attach 64 | . 1 1 . 1 2 1 4 9 3 10 24 8 Detach 26 | . . . . 1 . . . 5 3 9 8 . Swap 19 | . . . 2 2 . 3 2 1 . 2 3 4 Drop 52 | . 2 . 2 3 2 9 3 13 . 4 6 8 Fire 337 | 1 27 . . 27 3 30 31 23 7 30 105 53 Melee . | . . . . . . . . . . . . . Ram 11 | . . 7 . . . . . . . . . 4 Kick 8 | . . . . 2 . . . . . . 6 . Crush . | . . . . . . . . . . . . . Escape Stasis . | . . . . . . . . . . . . . Rewire . | . . . . . . . . . . . . . Trap . | . . . . . . . . . . . . . Miscellaneous . | . . . . . . . . . . . . . Route ------- -11/Scrapyard -10/Materials (discovered 3 exits: [*Mat] / *Min x2) -10/Mines (discovered 3 exits: [*Mat x2] / *Exi) -10/Exiles -9/Mines -8/Materials -8/Storage -7/Factory -6/Factory (discovered 2 exits: *Fac / [*Low]) -5/Factory (discovered 3 exits: *Fac / *Upp / *Ext) -4/Factory (discovered 3 exits: *Res x2 / *Upp) -3/Research -2/Research History --------- Turn | Location | Event 15 | -11/Scrapyard | Discovered new exit (range 15) 66 | -11/Scrapyard | Entered Materials 313 | -10/Materials | Build established: Mutant 337 | -10/Materials | Identified exit to Mines 356 | -10/Materials | Discovered new exit (range 6) 404 | -10/Materials | Entered Mines 420 | -10/Mines | Assembled infested the area 456 | -10/Mines | Core integrity fell below 50% 535 | -10/Mines | A weapon hastily lodged in a ceiling crevice suddenly fell to the ground 632 | -10/Mines | Received a Rocket Launcher from a helpful Derelict 659 | -10/Mines | Discovered new exit (range 8) 678 | -10/Mines | Discovered new exit (range 12) 690 | -10/Mines | Deemed a non-threat by the Exiles lab entrance 691 | -10/Mines | Discovered new exit (range 5) 695 | -10/Mines | Entered Exiles 718 | -10/Exiles | Met 8R-AWN 736 | -10/Exiles | Met EX-HEX 768 | -10/Exiles | Met EX-BIN 778 | -10/Exiles | Aligned with FarCom system 779 | -10/Exiles | Given EX-Vault access code 802 | -10/Exiles | Opened EX-Vault 811 | -10/Exiles | Found Modified TNC 831 | -10/Exiles | Warned to stay clear of 0b10 Research branches 860 | -10/Exiles | Met EX-DEC 933 | -10/Exiles | Discovered new exit (range 14) 950 | -10/Exiles | Left Exiles lab with Modified TNC 950 | -10/Exiles | Entered Mines 960 | -9/Mines | Met a Derelict bent on vengeance 977 | -9/Mines | Core integrity fell below 20% 1172 | -9/Mines | Learned location of Storage (-8) 1217 | -9/Mines | YI-UF0 nonchalantly dropped a Grenade Launcher on the ground 1236 | -9/Mines | Found a hidden stash of uninstalled traps 1544 | -9/Mines | Discovered new exit (range 6) 1550 | -9/Mines | Entered Materials 1550 | -8/Materials | Evolved 4 slots: Propulsion x2, Utility x1, Weapon x1 1619 | -8/Materials | Discovered new exit (range 9) 1680 | -8/Materials | Entered Storage 2187 | -8/Storage | Discovered new exit (range 15) 2213 | -8/Storage | Entered Factory 2213 | -7/Factory | Evolved 2 slots: Utility x2 2387 | -7/Factory | Build established: Scavenger-Skirmisher 2546 | -7/Factory | Discovered new exit (range 10) 3256 | -7/Factory | Entered another Factory area 3256 | -6/Factory | Evolved 2 slots: Utility x1, Weapon x1 3783 | -6/Factory | Lost 4 parts (1n2u1w) 3880 | -6/Factory | Discovered new exit (range 8) 3999 | -6/Factory | Discovered new exit (range 10) 4104 | -6/Factory | Entered another Factory area 4104 | -5/Factory | Evolved 2 slots: Utility x2 4118 | -5/Factory | Discovered new exit (range 16) 4235 | -5/Factory | Build established: Scout 4297 | -5/Factory | Discovered new exit (range 6) 4382 | -5/Factory | Identified exit to Extension 4407 | -5/Factory | Identified exit to Upper Caves 4429 | -5/Factory | Discovered new exit (range 15) 4434 | -5/Factory | Identified exit to Factory 4434 | -5/Factory | Entered another Factory area 4434 | -4/Factory | Evolved 2 slots: Propulsion x2 4475 | -4/Factory | Spotted B-86 Titan 4607 | -4/Factory | Discovered new exit (range 20) 5070 | -4/Factory | Discovered new exit (range 7) 5072 | -4/Factory | Identified exit to Upper Caves 5240 | -4/Factory | Lost 4 parts (2n2u) 5254 | -4/Factory | Discovered new exit (range 15) 5260 | -4/Factory | Identified exit to Research 5260 | -4/Factory | Entered Research 5260 | -3/Research | Evolved 2 slots: Power x1, Utility x1 6015 | -3/Research | Lost 4 parts (1p2u1w) 6476 | -3/Research | Lost 7 parts (1p1n1u4w) 6479 | -3/Research | Discovered new exit (range 14) 6495 | -3/Research | Identified exit to Research 6496 | -3/Research | Entered another Research area 6496 | -2/Research | Evolved 2 slots: Utility x1, Weapon x1 6519 | -2/Research | Found Imp. Powered Armor 6522 | -2/Research | Found Imp. Powered Armor 7066 | -2/Research | Garrison activated, responded to threat 7289 | -2/Research | Released all parts (13) 7310 | -2/Research | Spotted B-90 Cyclops 7317 | -2/Research | Lost 15 parts (2p6n4u3w) 7329 | -2/Research | Core integrity fell below 50% 7353 | -2/Research | Spotted B-90 Cyclops 7377 | -2/Research | Core integrity fell below 20% 7385 | -2/Research | Destroyed by P-80 Master with Gamma Rifle Last Messages --------------- 07351_ W-44 Eye sends out distress signal. 07352_ Slug penetrates H-88 Terminator. 07352_ Penetrated by Slug. 07352_ Slammed into H-88 Terminator. 07352_ Destabilizing: System corrupted (+1). 07352_ Penetrated by Slug. 07355_ Critical hit (Burn: +37). 07355_ Penetrated by Slug. 07355_ Biometal Leg destroyed. 07360_ B-90 Cyclops activates siege mode. 07361_ System corrupted: Biometal Heavy Treads rejected. 07371_ O-32 Director sends out distress signal. 07371_ O-32 Director: "IFF HANDSHAKE FAILED. SECURING TERMINAL." 07376_ Slug penetrates Reaction Chamber. 07376_ Slug penetrates Wall. 07378_ Reaction Chamber disabled. 07378_ ALERT: Hostiles spotted, dispatching reinforcements to Terminal R005. 07381_ B-90 Cyclops activates siege mode. 07385_ Slammed into R-10 Processor. Map ----- +----------------------------------------------------+ | ???# "T # #???????????????? ??# ! | | ???# """ + #??????????????? ??# ! | | ???# "" # #???????????????####???# ! | | ???# # #??????????##########??# | | ???# + #??????????# #??# | | ???###########+#########????# #??# | | ???????# #????# """ #### | | ???????# #????# """ # """ | | ???????# """ #????# """ # """"" | | ???????# "" =! #????# """ # """"" | | ???????# """ !! #????#! """ " """""? | | ???????# ####?# # """""? | | ???????# ;BB#?# # """"" | | ??????# ;BB#######+#### """ | | ??????## #p u | | ???????# """T""" # ! | | ???????################# | | ?????????????# ?# | | ?????????????# ?# """ """ | | ?????????????# ! # """ """ #######+ | | ?????????????# # """ """ #? ? | | ?????????????# * + #?! ?? | | ?????????????# # # ???? | | ?????????????# # # ????? | | ?????????????# + R #"""T"""## + ?????? | | ?????????????############@##########?# #??????? | | ??????????????????????? ?????????# #??????? | | ????????????????????? ???????# #??????? | | ????????????????????# """ """ ?????# #??????? | | ????????????????????# """k """ ???# #??????? | | ????????????????????# """ """ ?# #??????? | | ????????????????????# ## #??????? | | ????????????????????# s [ [ ?????# #??????? | | ????????????????????###/########?????# #??????? | | ?????????????????????????????????????# #??????? | | ???????????????????????s?????????????# #??????? | | ?????????????????????????????????????# #??????? | | ############?????????????????????????# #??????? | | #???????????s?????????????# +??????? | | = #?????????s?s?????????????# #??????? | | = #?????????????????????????# #??????? | | [ #?????????????????????????# #??????? | | [ ### #?????????????????????????# #??????? | | #?? #?????????????????????????# #??????? | | #??? #?????????????????????????# #??????? | | #??? ????????????????????????# #??????? | | #???? ???????????????????????# #??????? | | #???? ?????????????????????# #??????? | | #????? ????????????????????# #??????? | | #?????"""" "???????????????????# #??????? | +----------------------------------------------------+ Best States ------------- Heat Dissipation 87 Energy Generation 41 Energy Capacity 420 Matter Stores 300 Matter Capacity 300 Sight Range 16 Terrain Scan Range 20 Terrain Scan Density 110 Jamming Range 12 Additional Mass Support 9 Armor Coverage 700 Resistance: TH 15 Core Shielding 20 Evasion (%) 64 Targeting Accuracy 8 Offensive Hacking 22 Item Schematics ----------------- None Robot Schematics ------------------ None Fabricated ------------ Nothing Alien Tech Used ----------------- None Achievements -------------- None Challenges ------------ None Game ------ Seed SalvageBladeProcessor Manual? 0 Play Time 01:21:15 Cumulative 58.7 hours Start 2022.04.02 @ 19:51:06 End 2022.04.02 @ 21:32:20 Sessions 3 Manual Loads 0 Difficulty Rogue Special Mode None Game No. 93 Rogue 93 Adventurer 0 Explorer 0 Win Type - Total 0 Types 0/0/0/0/0/0/0/0/0 Lore% 37 Gallery% 49 Achievement% 32 Wizard Run 0 Options --------- ASCII 0 Keyboard 0 Movement Numpad Keybinds 0 Fullscreen 1 Font 18/SmallcapsGlow Map View 76x50 Tactical HUD 1 Map Filters NONE Filters NONE Steam 1 RUN: 6d5c2569-c902-473c-909f-07ecbd761b8f